fUST/lending_fUST_20240705
["ID","MTS","AMOUNT","RATE_DAILY","PERIOD"]
[331184169,1720125049879,-500.0,0.0001452,2]
[331184170,1720125049888,-500.0,0.0001452,2]
[331184171,1720125049898,-890.57,0.0001452,2]
[331184172,1720125049911,-2563.29,0.0001452,2]
[331184173,1720125049926,-500.0,0.0001452,2]
[331184174,1720125049940,-500.0,0.0001452,2]
[331184175,1720125049953,-3663.1,0.00014693,2]
[331184176,1720125049965,-3663.1,0.00014693,2]
[331184177,1720125049978,-1458.97870452,0.00014783,2]
[331184178,1720125049991,-1458.97870452,0.00014784,2]
[331184179,1720125050005,-487.63109753,0.00014793,2]
[331184180,1720125050020,-3288.11,0.00014793,2]
[331184181,1720125050035,-716.56,0.00014793,2]
[331184182,1720125050050,-500.0,0.00014793,2]
[331184183,1720125050063,-500.0,0.00014793,2]
[331184184,1720125050076,-500.0,0.00014793,2]
[331184185,1720125050087,-3663.1,0.00014793,2]
[331184186,1720125050102,-3663.1,0.00014793,2]
[331184187,1720125050115,-3663.1,0.00014793,2]
[331184188,1720125050130,-3663.1,0.00014793,2]
[331184189,1720125050140,-3663.1,0.00014793,2]
[331184190,1720125050152,-3663.1,0.00014793,2]
[331184191,1720125050163,-3663.20080794,0.00014793,2]
[331184192,1720125050177,-3137.77932824,0.00014794,2]
[331184193,1720125050190,-1158.13050949,0.00014794,2]
[331184194,1720125050202,-1284.76673272,0.00014794,2]
[331184195,1720125050215,-500.0,0.00014794,2]
[331184196,1720125050230,-500.0,0.00014794,2]
[331184197,1720125050242,-500.0,0.00014794,2]
[331184198,1720125050253,-500.0,0.00014794,2]
[331184199,1720125050263,-500.0,0.00014794,2]
[331184200,1720125050275,-500.0,0.00014794,2]
[331184201,1720125050288,-500.0,0.00014794,2]
[331184202,1720125050302,-5830.83,0.00014794,2]
[331184203,1720125050344,-2594.59,0.00014794,2]
[331184204,1720125050356,-500.0,0.00014794,2]
[331184205,1720125050367,-500.0,0.00014794,2]
[331184206,1720125050383,-612.58,0.00014794,2]
[331184207,1720125050394,-329.93533,0.00014794,2]
[331184208,1720125050408,-329.93533,0.00014794,2]
[331184209,1720125050419,-1011.31,0.00014794,2]
[331184210,1720125050431,-151.0,0.00014794,2]
[331184211,1720125050442,-500.0,0.00014794,2]
[331184212,1720125050453,-151.0,0.00014794,2]
[331184213,1720125050464,-718.02,0.00014794,2]
[331184214,1720125050475,-904.72,0.00014794,2]
[331184215,1720125050486,-500.0,0.00014794,2]
[331184216,1720125050497,-500.0,0.00014794,2]
[331184217,1720125050508,-500.0,0.00014794,2]
[331184218,1720125050518,-500.0,0.00014794,2]
[331184219,1720125050530,-500.0,0.00014794,2]
[331184220,1720125050541,-500.0,0.00014794,2]
[331184221,1720125050552,-500.0,0.00014794,2]
[331184222,1720125050563,-500.0,0.00014794,2]
[331184223,1720125050575,-500.0,0.00014794,2]
[331184224,1720125050585,-500.0,0.00014794,2]
[331184225,1720125050597,-500.0,0.00014794,2]
[331184226,1720125050607,-500.0,0.00014794,2]
[331184227,1720125050618,-4986.29,0.00014794,2]
[331184228,1720125050632,-249.94,0.00014794,2]
[331184229,1720125050643,-500.0,0.00014794,2]
[331184230,1720125050654,-263.36816196,0.00014794,2]
[331184231,1720125050665,-551.03,0.00014794,2]
[331184232,1720125050677,-500.0,0.00014794,2]
[331184233,1720125050688,-500.0,0.00014794,2]
[331184234,1720125050699,-500.0,0.00014794,2]
[331184235,1720125050710,-500.0,0.00014794,2]
[331184236,1720125050721,-1098.72,0.00014794,2]
[331184237,1720125050733,-500.0,0.00014794,2]
[331184238,1720125050746,-1085.54,0.00014794,2]
[331184239,1720125050757,-4861.15,0.00014794,2]
[331184240,1720125050770,-151.0,0.00014794,2]
[331184241,1720125050782,-500.0,0.00014794,2]
[331184242,1720125050794,-554.49,0.00014794,2]
[331184243,1720125050805,-151.0,0.00014794,2]
[331184244,1720125050818,-151.0,0.00014794,2]
[331184245,1720125050829,-500.0,0.00014794,2]
[331184246,1720125050841,-500.0,0.00014794,2]
[331184247,1720125050854,-289.294637,0.00014794,2]
[331184248,1720125050865,-500.0,0.00014794,2]
[331184249,1720125050880,-1701.02,0.00014794,2]
[331184250,1720125050891,-3389.11,0.00014794,2]
[331184251,1720125050904,-2164.19,0.00014794,2]
[331184252,1720125050916,-500.0,0.00014794,2]
[331184253,1720125050930,-500.0,0.00014794,2]
[331184254,1720125050944,-681.87,0.00014794,2]
[331184255,1720125050956,-1206.34,0.00014794,2]
[331184256,1720125050968,-500.0,0.00014794,2]
[331184257,1720125050980,-500.0,0.00014794,2]
[331184258,1720125050991,-614.46153942,0.00014794,2]
[331184259,1720125051005,-590.69,0.00014794,2]
[331184260,1720125051016,-1596.7,0.00014794,2]
[331184261,1720125051027,-920.02,0.00014794,2]
[331184262,1720125051038,-500.0,0.00014794,2]
[331184263,1720125051050,-500.0,0.00014794,2]
[331184264,1720125051061,-1888.83,0.00014794,2]
[331184265,1720125051072,-590.62,0.00014794,2]
[331184266,1720125051083,-3299.61,0.00014794,2]
[331184267,1720125051220,-5499.86,0.00014794,2]
[331184268,1720125051229,-500.0,0.00014794,2]
[331184269,1720125051238,-500.0,0.00014794,2]
[331184270,1720125051247,-500.0,0.00014794,2]
[331184271,1720125051256,-573.86,0.00014794,2]
[331184272,1720125051266,-500.0,0.00014794,2]
[331184273,1720125051275,-500.0,0.00014794,2]
[331184274,1720125051284,-500.0,0.00014794,2]
[331184275,1720125051293,-500.0,0.00014794,2]
[331184276,1720125051302,-500.0,0.00014794,2]
[331184277,1720125051311,-500.0,0.00014794,2]
[331184278,1720125051320,-286.513302,0.00014794,2]
[331184279,1720125051329,-500.0,0.00014794,2]
[331184280,1720125051338,-286.513302,0.00014794,2]
[331184281,1720125051347,-500.0,0.00014794,2]
[331184282,1720125051356,-500.0,0.00014794,2]
[331184283,1720125051365,-500.0,0.00014794,2]
[331184284,1720125051375,-14108.32,0.00014794,2]
[331184285,1720125051384,-516.99,0.00014794,2]
[331184286,1720125051393,-570.73,0.00014794,2]
[331184287,1720125051403,-151.0,0.00014794,2]
[331184288,1720125051411,-500.0,0.00014794,2]
[331184289,1720125051420,-152.825597,0.00014794,2]
[331184290,1720125051429,-152.825597,0.00014794,2]
[331184291,1720125051438,-500.0,0.00014794,2]
[331184292,1720125051447,-500.0,0.00014794,2]
[331184293,1720125051456,-151.0,0.00014794,2]
[331184294,1720125051465,-1597.42,0.00014794,2]
[331184295,1720125051474,-500.0,0.00014794,2]
[331184296,1720125051483,-500.0,0.00014794,2]
[331184297,1720125051493,-151.0,0.00014794,2]
[331184298,1720125051502,-500.0,0.00014794,2]
[331184299,1720125051511,-506.07017931,0.00014794,2]
[331184300,1720125051520,-890.57,0.00014794,2]
[331184301,1720125051529,-2563.29,0.00014794,2]
[331184302,1720125051538,-232.192852,0.00014794,2]
[331184303,1720125051547,-500.0,0.00014794,2]
[331184304,1720125051556,-500.0,0.00014884,2]
[331184305,1720125051565,-1458.97870452,0.00014988,2]
[331184306,1720125051573,-1458.97870452,0.0001499,2]
[331184307,1720125051582,-11029.28750384,0.00014998,2]
[331184308,1720125051591,-6076.9012323,0.00014998,2]
[331184309,1720125051601,-151.0,0.00014998,2]
[331184310,1720125051610,-352.620862,0.00014998,2]
[331184311,1720125051619,-352.620862,0.00014998,2]
[331184312,1720125051628,-151.0,0.00014998,2]
[331184313,1720125051637,-151.0,0.00014998,2]
[331184314,1720125051647,-407.027612,0.00014998,2]
[331184315,1720125051656,-407.027612,0.00014998,2]
[331184316,1720125051665,-3078.51196359,0.00014999,2]
[331184317,1720125051674,-4710.72024946,0.00014999,2]
[331184318,1720125051683,-1463.29635585,0.00014999,2]
[331184319,1720125051692,-2132.45671248,0.00014999,2]
[331184320,1720125051701,-2118.3618334,0.00014999,2]
[331184321,1720125051711,-3005.27552071,0.00014999,4]
[331184322,1720125051720,-1597.25650539,0.00014999,2]
[331184323,1720125051730,-1434.44237247,0.00014999,2]
[331184324,1720125051747,-1500.0,0.00014999,2]
[331184325,1720125051758,-789.77698638,0.00014999,2]
[331184326,1720125051769,-1634.59229075,0.00014999,2]
[331184327,1720125051779,-1916.29526789,0.00014999,2]
[331184328,1720125051789,-2126.43441341,0.00014999,2]
[331184329,1720125051801,-743.46381934,0.00015,2]
[331184330,1720125051810,-2420.55776569,0.00015,2]
[331184331,1720125051822,-948.84245203,0.00015,2]
[331184332,1720125051831,-1039.06688618,0.00015,2]
[331184333,1720125051841,-937.8,0.00015,2]
[331184334,1720125051850,-395.4705443,0.00015,2]
[331184335,1720125051859,-2831.15941464,0.00015,2]
[331184336,1720125051869,-401.84,0.00015021,2]
[331184337,1720125051879,-2917.95740904,0.00015058,2]
[331184338,1720125051888,-153.434505,0.00015067,2]
[331184339,1720125051896,-151.0,0.00015067,2]
[331184340,1720125051905,-151.0,0.00015067,2]
[331184341,1720125051914,-151.0,0.00015067,2]
[331184342,1720125051922,-188.923768,0.00015067,2]
[331184343,1720125051931,-183.702826,0.00015067,2]
[331184344,1720125051940,-183.702826,0.00015067,2]
[331184345,1720125051949,-151.0,0.00015067,2]
[331184346,1720125051958,-151.0,0.00015067,2]
[331184347,1720125051966,-3288.11,0.00015067,2]
[331184348,1720125051975,-151.0,0.00015067,2]
[331184349,1720125051985,-716.56,0.00015067,2]
[331184350,1720125051996,-500.0,0.00015067,2]
[331184351,1720125052006,-577.1689536,0.00015068,2]
[331184352,1720125052016,-500.0,0.00015068,2]
[331184353,1720125052025,-500.0,0.00015068,2]
[331184354,1720125052036,-500.0,0.00015068,2]
[331184355,1720125052046,-472.73,0.00015068,2]
[331184356,1720125052056,-500.0,0.00015068,2]
[331184357,1720125052067,-5830.83,0.00015068,2]
[331184358,1720125052077,-151.0,0.00015068,2]
[331184359,1720125052086,-2594.59,0.00015068,2]
[331184360,1720125052095,-500.0,0.00015068,2]
[331184361,1720125052105,-151.0,0.00015068,2]
[331184362,1720125052115,-151.0,0.00015068,2]
[331184363,1720125052125,-500.0,0.00015068,2]
[331184364,1720125052134,-612.58,0.00015068,2]
[331184365,1720125052144,-1011.31,0.00015068,2]
[331184366,1720125052153,-500.0,0.00015068,2]
[331184367,1720125052163,-718.02,0.00015068,2]
[331184368,1720125052177,-904.72,0.00015068,2]
[331184369,1720125052187,-151.0,0.00015068,2]
[331184370,1720125052196,-500.0,0.00015068,2]
[331184371,1720125052206,-500.0,0.00015068,2]
[331184372,1720125052215,-151.0,0.00015068,2]
[331184373,1720125052224,-500.0,0.00015068,2]
[331184374,1720125052233,-151.0,0.00015068,2]
[331184375,1720125052243,-151.0,0.00015068,2]
[331184376,1720125052253,-500.0,0.00015068,2]
[331184377,1720125052263,-151.0,0.00015068,2]
[331184378,1720125052273,-505.83099812,0.00015068,2]
[331184379,1720125052282,-500.0,0.00015068,2]
[331184380,1720125052291,-500.0,0.00015068,2]
[331184381,1720125052300,-500.0,0.00015068,2]
[331184382,1720125052309,-500.0,0.00015068,2]
[331184383,1720125052319,-500.0,0.00015068,2]
[331184384,1720125052331,-4986.29,0.00015068,2]
[331184385,1720125052339,-294.51046021,0.00015068,2]
[331184386,1720125052350,-551.03,0.00015068,2]
[331184387,1720125052360,-500.0,0.00015068,2]
[331184388,1720125052369,-541.22,0.00015068,2]
[331184389,1720125052380,-500.0,0.00015068,2]
[331184390,1720125052389,-500.0,0.00015068,2]
[331184391,1720125052400,-1098.72,0.00015068,2]
[331184392,1720125052409,-500.0,0.00015068,2]
[331184393,1720125052420,-1085.54,0.00015068,2]
[331184394,1720125052429,-4861.15,0.00015068,2]
[331184395,1720125052439,-151.0,0.00015068,2]
[331184396,1720125052448,-500.0,0.00015068,2]
[331184397,1720125052457,-554.49,0.00015068,2]
[331184398,1720125052467,-151.0,0.00015068,2]
[331184399,1720125052478,-151.0,0.00015068,2]
[331184400,1720125052487,-500.0,0.00015068,2]
[331184401,1720125052496,-500.0,0.00015068,2]
[331184402,1720125052505,-500.0,0.00015068,2]
[331184403,1720125052514,-1701.02,0.00015068,2]
[331184404,1720125052523,-3389.11,0.00015068,2]
[331184405,1720125052533,-2164.19,0.00015068,2]
[331184406,1720125052542,-204.88,0.00015068,2]
[331184407,1720125052551,-681.87,0.00015068,2]
[331184408,1720125052560,-1206.34,0.00015068,2]
[331184409,1720125052570,-500.0,0.00015068,2]
[331184410,1720125052579,-590.69,0.00015068,2]
[331184411,1720125052587,-1596.7,0.00015068,2]
[331184412,1720125052596,-920.02,0.00015068,2]
[331184413,1720125052605,-500.0,0.00015068,2]
[331184414,1720125052614,-500.0,0.00015068,2]
[331184415,1720125052624,-1888.83,0.00015068,2]
[331184416,1720125052633,-590.62,0.00015068,2]
[331184417,1720125052643,-3299.61,0.00015068,2]
[331184418,1720125052651,-5499.86,0.00015068,2]
[331184419,1720125052660,-466.96572818,0.00015068,2]
[331184420,1720125052669,-500.0,0.00015068,2]
[331184421,1720125052678,-573.86,0.00015068,2]
[331184422,1720125052687,-500.0,0.00015068,2]
[331184423,1720125052696,-500.0,0.00015068,2]
[331184424,1720125052705,-500.0,0.00015068,2]
[331184425,1720125052714,-500.0,0.00015068,2]
[331184426,1720125052723,-286.513302,0.00015068,2]
[331184427,1720125052734,-213.95014935,0.00015068,2]
[331184428,1720125052746,-286.513302,0.00015068,2]
[331184429,1720125052755,-500.0,0.00015068,2]
[331184430,1720125052765,-500.0,0.00015068,2]
[331184431,1720125052774,-500.0,0.00015068,2]
[331184432,1720125052785,-14108.32,0.00015068,2]
[331184433,1720125052794,-516.99,0.00015068,2]
[331184434,1720125052803,-570.73,0.00015068,2]
[331184435,1720125052815,-151.0,0.00015068,2]
[331184436,1720125052824,-152.825597,0.00015068,2]
[331184437,1720125052833,-152.825597,0.00015068,2]
[331184438,1720125052842,-500.0,0.00015068,2]
[331184439,1720125052851,-500.0,0.00015068,2]
[331184440,1720125052860,-151.0,0.00015068,2]
[331184441,1720125052870,-1597.42,0.00015068,2]
[331184442,1720125052879,-500.0,0.00015068,2]
[331184443,1720125052889,-500.0,0.00015068,2]
[331184444,1720125052898,-204.2,0.00015068,2]
[331184445,1720125052908,-890.57,0.00015068,2]
[331184446,1720125052917,-2563.29,0.00015068,2]
[331184447,1720125052926,-232.192852,0.00015068,2]
[331184448,1720125052935,-199.1710651,0.0001514,2]
[331184449,1720125052944,-150.0,0.00015159,2]
[331184450,1720125052954,-329.93533,0.00015231,2]
[331184451,1720125052963,-329.93533,0.00015231,2]
[331184452,1720125052972,-151.0,0.00015231,2]
[331184453,1720125052981,-150.0,0.00015231,2]
[331184454,1720125052990,-708.927,0.00015231,2]
[331184455,1720125052999,-894.828,0.00015231,2]
[331184456,1720125053009,-3288.11,0.00015341,2]
[331184457,1720125053019,-716.56,0.00015341,2]
[331184458,1720125053029,-500.0,0.00015341,2]
[331184459,1720125053039,-505.12,0.00015342,2]
[331184460,1720125053048,-500.0,0.00015342,2]
[331184461,1720125053057,-540.71,0.00015342,2]
[331184462,1720125053067,-500.0,0.00015342,2]
[331184463,1720125053077,-5830.83,0.00015342,2]
[331184464,1720125053087,-2594.59,0.00015342,2]
[331184465,1720125053097,-500.0,0.00015342,2]
[331184466,1720125053106,-500.0,0.00015342,2]
[331184467,1720125053116,-612.58,0.00015342,2]
[331184468,1720125053126,-1011.31,0.00015342,2]
[331184469,1720125053136,-500.0,0.00015342,2]
[331184470,1720125053146,-718.02,0.00015342,2]
[331184471,1720125053156,-904.72,0.00015342,2]
[331184472,1720125053166,-500.0,0.00015342,2]
[331184473,1720125053176,-500.0,0.00015342,2]
[331184474,1720125053185,-500.0,0.00015342,2]
[331184475,1720125053194,-500.0,0.00015342,2]
[331184476,1720125053203,-500.0,0.00015342,2]
[331184477,1720125053213,-151.0,0.00015342,2]
[331184478,1720125053223,-500.0,0.00015342,2]
[331184479,1720125053232,-500.0,0.00015342,2]
[331184480,1720125053242,-151.0,0.00015342,2]
[331184481,1720125053251,-4986.29,0.00015342,2]
[331184482,1720125053260,-551.03,0.00015342,2]
[331184483,1720125053269,-151.0,0.00015342,2]
[331184484,1720125053279,-500.0,0.00015342,2]
[331184485,1720125053288,-500.0,0.00015342,2]
[331184486,1720125053298,-500.0,0.00015342,2]
[331184487,1720125053307,-183.702826,0.00015342,2]
[331184488,1720125053316,-183.702826,0.00015342,2]
[331184489,1720125053325,-151.0,0.00015342,2]
[331184490,1720125053335,-1098.72,0.00015342,2]
[331184491,1720125053344,-151.0,0.00015342,2]
[331184492,1720125053353,-500.0,0.00015342,2]
[331184493,1720125053362,-1085.54,0.00015342,2]
[331184494,1720125053372,-4861.15,0.00015342,2]
[331184495,1720125053381,-500.0,0.00015342,2]
[331184496,1720125053390,-554.49,0.00015342,2]
[331184497,1720125053399,-500.0,0.00015342,2]
[331184498,1720125053500,-500.0,0.00015342,2]
[331184499,1720125053511,-500.0,0.00015342,2]
[331184500,1720125053521,-1701.02,0.00015342,2]
[331184501,1720125053531,-3389.11,0.00015342,2]
[331184502,1720125053540,-2164.19,0.00015342,2]
[331184503,1720125053550,-151.0,0.00015342,2]
[331184504,1720125053559,-681.87,0.00015342,2]
[331184505,1720125053569,-1206.34,0.00015342,2]
[331184506,1720125053579,-500.0,0.00015342,2]
[331184507,1720125053589,-590.69,0.00015342,2]
[331184508,1720125053599,-1596.7,0.00015342,2]
[331184509,1720125053608,-920.02,0.00015342,2]
[331184510,1720125053617,-500.0,0.00015342,2]
[331184511,1720125053629,-352.620862,0.00015342,2]
[331184512,1720125053638,-1888.83,0.00015342,2]
[331184513,1720125053649,-352.620862,0.00015342,2]
[331184514,1720125053659,-590.62,0.00015342,2]
[331184515,1720125053668,-3299.61,0.00015342,2]
[331184516,1720125053679,-158.543105,0.00015342,2]
[331184517,1720125053689,-5499.86,0.00015342,2]
[331184518,1720125053699,-500.0,0.00015342,2]
[331184519,1720125053708,-573.86,0.00015342,2]
[331184520,1720125053717,-500.0,0.00015342,2]
[331184521,1720125053726,-500.0,0.00015342,2]
[331184522,1720125053738,-389.06,0.00015342,2]
[331184523,1720125053748,-500.0,0.00015342,2]
[331184524,1720125053758,-407.027612,0.00015342,2]
[331184525,1720125053768,-407.027612,0.00015342,2]
[331184526,1720125053778,-611.3072013,0.00015342,2]
[331184527,1720125053788,-500.0,0.00015342,2]
[331184528,1720125053798,-500.0,0.00015342,2]
[331184529,1720125053807,-12845.58798433,0.00015342,2]
[331184530,1720125053974,-341.9273687,0.00015342,2]
[331184531,1720125054329,-500.0,0.00013698,2]
[331184532,1720125054339,-500.0,0.00013698,2]
[331184533,1720125054349,-500.0,0.00013698,2]
[331184534,1720125054359,-500.0,0.00013698,2]
[331184535,1720125054367,-500.0,0.00013972,2]
[331184536,1720125054377,-506.93289652,0.00013972,2]
[331184537,1720125054385,-500.0,0.00013972,2]
[331184538,1720125054394,-500.0,0.00014246,2]
[331184539,1720125054403,-500.0,0.00014246,2]
[331184540,1720125054412,-500.0,0.00014246,2]
[331184541,1720125054422,-500.0,0.0001452,2]
[331184542,1720125054432,-500.0,0.0001452,2]
[331184543,1720125054442,-232.192852,0.00014794,2]
[331184544,1720125054451,-500.0,0.00014794,2]
[331184545,1720125054460,-500.0,0.00014794,2]
[331184546,1720125054469,-232.192852,0.00015068,2]
[331184547,1720125054479,-500.0,0.00015068,2]
[331184548,1720125054489,-920.80464697,0.00015342,2]
[331184549,1720125054499,-570.73,0.00015342,2]
[331184550,1720125054509,-500.0,0.00015342,2]
[331184551,1720125054519,-527.32,0.00015342,2]
[331184552,1720125054528,-1597.42,0.00015342,2]
[331184553,1720125054538,-319.54,0.00015342,2]
[331184554,1720125054547,-890.57,0.00015342,2]
[331184555,1720125054556,-2563.29,0.00015342,2]
[331184556,1720125054566,-500.0,0.00015342,2]
[331184557,1720125054576,-1000.0,0.000155,2]
[331184558,1720125054585,-151.0,0.00015615,2]
[331184559,1720125054595,-151.0,0.00015615,2]
[331184560,1720125054605,-151.0,0.00015615,2]
[331184561,1720125054614,-151.0,0.00015615,2]
[331184562,1720125054624,-3288.11,0.00015615,2]
[331184563,1720125054634,-716.56,0.00015615,2]
[331184564,1720125054643,-500.0,0.00015615,2]
[331184565,1720125054652,-247.5159057,0.00015616,2]
[331184566,1720125054997,-500.0,0.00013698,2]
[331184567,1720125055009,-500.0,0.00013698,2]
[331184568,1720125055019,-25.8805,0.00013698,2]
[331184569,1720125055031,-474.1195,0.00013698,2]
[331184570,1720125055040,-618.27,0.00013972,2]
[331184571,1720125055050,-500.0,0.00013972,2]
[331184572,1720125055059,-252.4840943,0.00015616,2]
[331184573,1720125055068,-500.0,0.00015616,2]
[331184574,1720125055077,-2731.6321915,0.00015616,2]
[331184575,1720125055089,-319.91534022,0.00015616,2]
[331184576,1720125055164,-434.33412669,0.00013698,2]
[331184577,1720125055173,-165.70069415,0.00013698,2]
[331184578,1720125055182,-78.94860018,0.00013972,2]
[331184594,1720125295563,1064.47346101,9.999e-05,2]
[331184606,1720125368756,587.7182223,9.999e-05,2]
[331184608,1720125377394,155.21382447,9.999e-05,2]
[331184609,1720125378357,1860.38603495,9.999e-05,2]
[331184610,1720125389331,530.50776108,9.999e-05,2]
[331184611,1720125395854,200.01501858,9.999e-05,2]
[331184613,1720125403616,613.80017943,9.999e-05,2]
[331184614,1720125405516,842.64804764,9.999e-05,2]
[331184615,1720125408308,776.91953525,9.999e-05,2]
[331184616,1720125411316,3772.28040147,9.999e-05,2]
[331184617,1720125417680,725.60164127,9.999e-05,2]
[331184618,1720125426309,3772.28040147,9.999e-05,2]
[331184619,1720125435647,935.25685846,9.999e-05,2]
[331184620,1720125454770,155.24388584,9.999e-05,2]
[331184621,1720125455549,155.71287648,9.999e-05,2]
[331184622,1720125461287,154.83742071,9.999e-05,2]
[331184624,1720125471784,169.03338578,9.999e-05,2]
[331184625,1720125475276,154.83742071,9.999e-05,2]
[331184626,1720125482654,200.79020594,9.999e-05,2]
[331184627,1720125483454,160.0,9.999e-05,2]
[331184628,1720125486718,294.59280484,9.999e-05,2]
[331184629,1720125488453,320.23954076,9.999e-05,2]
[331184630,1720125494792,159.59622182,9.999e-05,2]
[331184631,1720125498075,452.30905176,9.999e-05,2]
[331184632,1720125498225,154.99075164,9.999e-05,2]
[331184633,1720125503318,598.61552893,9.999e-05,2]
[331184635,1720125509428,623.18464005,9.999e-05,2]
[331184636,1720125509788,159.59622182,9.999e-05,2]
[331184637,1720125509932,162.91090393,9.999e-05,2]
[331184638,1720125518602,155.1583484,9.999e-05,2]
[331184639,1720125520943,189.29518759,9.999e-05,2]
[331184640,1720125525671,154.83742071,9.999e-05,2]
[331184642,1720125529452,1435.4148642,9.999e-05,2]
[331184643,1720125529767,155.76371906,9.999e-05,2]
[331184644,1720125537965,179.51481294,9.999e-05,2]
[331184646,1720125541024,286.77263575,9.999e-05,2]
[331184648,1720125550021,154.83742071,9.999e-05,2]
[331184649,1720125550680,402.85732737,9.999e-05,2]
[331184650,1720125555641,154.83742071,9.999e-05,2]
[331184651,1720125556378,155.503882,9.999e-05,2]
[331184652,1720125557702,154.83742071,0.0001,2]
[331184653,1720125566029,155.29293887,9.999e-05,2]
[331184654,1720125566604,154.83742071,9.999e-05,2]
[331184656,1720125574106,154.83742071,9.999e-05,2]
[331184657,1720125578204,164.04060289,9.999e-05,2]
[331184658,1720125578533,166.17515221,9.999e-05,2]
[331184659,1720125581427,267.84334631,9.999e-05,2]
[331184661,1720125583372,155.02402872,9.999e-05,2]
[331184662,1720125583681,402.27259055,9.999e-05,2]
[331184664,1720125587398,309.61298378,9.999e-05,2]
[331184665,1720125597822,282.93616103,9.999e-05,2]
[331184666,1720125597925,285.30430484,9.999e-05,2]
[331184669,1720125609672,491.33508365,9.999e-05,2]
[331184670,1720125611363,597.14108439,9.999e-05,2]
[331184671,1720125625997,286.77263575,9.999e-05,2]
[331184672,1720125631654,200.79020594,9.999e-05,2]
[331184673,1720125638328,154.86836189,9.999e-05,2]
[331184674,1720125640035,154.89930307,9.999e-05,2]
[331184675,1720125647945,236.60958914,9.999e-05,2]
[331184676,1720125657703,155.58429141,0.0001,2]
[331184677,1720125667467,318.0694556,9.999e-05,2]
[331184679,1720125683780,195.47966853,9.999e-05,2]
[331184680,1720125684674,402.27259055,9.999e-05,2]
[331184681,1720125688696,864.91777476,9.999e-05,2]
[331184682,1720125691295,214.3607454,9.999e-05,2]
[331184683,1720125710807,307.27800498,9.999e-05,2]
[331184684,1720125731004,286.77263575,9.999e-05,2]
[331184685,1720125735002,154.83742071,9.999e-05,2]
[331184686,1720125738323,301.07559317,9.999e-05,2]
[331184687,1720125742329,597.70544221,9.999e-05,2]
[331184688,1720125744855,528.63416526,9.999e-05,2]
[331184690,1720125755858,175.89790425,9.999e-05,2]
[331184691,1720125775689,402.27259055,9.999e-05,2]
[331184695,1720125831011,154.83742071,9.999e-05,2]
[331184698,1720125850469,212.02110912,9.999e-05,2]
[331184700,1720125854007,287.45619334,9.999e-05,2]
[331184701,1720125871696,372.8163147,9.999e-05,2]
[331184711,1720125926026,155.45567251,9.999e-05,2]
[331184714,1720125962193,200.84456934,9.999e-05,2]
[331184715,1720125973178,200.84456934,9.999e-05,2]
[331184719,1720126093183,200.68147914,9.999e-05,2]
[331184722,1720126181446,159.35113188,9.999e-05,2]
[331184723,1720126208049,-300.0,0.00011618,2]
[331184724,1720126208078,-300.0,0.00011618,2]
[331184725,1720126208111,-206.72780879,0.00011619,2]
[331184726,1720126208146,-806.72780879,0.00011619,2]
[331184727,1720126208192,-806.72780879,0.00011619,2]
[331184728,1720126208309,-278.17360821,0.00011619,2]
[331184774,1720126232525,-2349.33745249,0.00011619,2]
[331184776,1720126232537,-7747.51777497,0.00011619,2]